Cogmind - Beta 17.1 @@@ ROGUE MODE // 2026.09.05 @ 06:58:48 Player: s0rry Result: Self-destructed Performance ------------- Evolutions (1) 500 Regions Visited (2) 400 Robots Destroyed (29) 145 Value Destroyed (676) 676 Prototype IDs (0) 0 Alien Tech Used (0) 0 Bonus (0) 0 TOTAL SCORE: 1721 Bonus ------- None Cogmind --------- Core Integrity 246/400 Matter 269/300 Energy 250/250 System Corruption 0% Temperature Cool (12) Movement Walking (120) Location -9/Materials Parts ------- > --- POWER (1) -------- Ion Engine > --- PROPULSION (4) --- Aluminum Leg Aluminum Leg Aluminum Leg > --- UTILITY (2) ------ Heat Sink Small Storage Unit > --- WEAPON (2) ------- Heavy Assault Rifle Autogun > --- INVENTORY (8) ---- Ion Engine Light Ion Engine Small Storage Unit Visual Processing Unit ECM Suite Assault Rifle Light Cannon Peak State ------------ > --- POWER ------------ Light Ion Engine > --- PROPULSION ------- Aluminum Leg Aluminum Leg Aluminum Leg Aluminum Leg > --- UTILITY ---------- Heat Sink Small Storage Unit > --- WEAPON ----------- Spread Laser Autogun > --- INVENTORY -------- Light Ion Engine Small Storage Unit Visual Processing Unit Sensor Array ECM Suite Assault Rifle Heavy Assault Rifle Light Cannon [Rating: 12] Favorites ----------- Power Light Ion Engine Engine Light Ion Engine Propulsion Aluminum Leg Treads Light Treads Leg Aluminum Leg Utility Small Storage Unit Device ECM Suite Storage Small Storage Unit Weapon Spread Laser Energy Gun Spread Laser Ballistic Gun Assault Rifle Build | -11 -10 -9 ------- Run | Yrd Mat Mat Slots Evolved 2 | . . 2 Power . | . . . Propulsion 2 | . . 2 Utility . | . . . Weapon . | . . . Parts Attached 27 | 7 8 12 Power 6 | 1 2 3 Engine 6 | 1 2 3 Core . | . . . Reactor . | . . . Propulsion 8 | 3 1 4 Treads 1 | 1 . . Leg 7 | 2 1 4 Wheel . | . . . Hover . | . . . Flight . | . . . Utility 5 | 1 1 3 Device 3 | . 1 2 Storage 2 | 1 . 1 Processor . | . . . Hackware . | . . . Protection . | . . . Artifact . | . . . Weapon 8 | 2 4 2 Energy Gun 4 | 2 2 . Energy Cannon . | . . . Ballistic Gun 4 | . 2 2 Ballistic Cannon . | . . . Launcher . | . . . Special Weapon . | . . . Impact Weapon . | . . . Slashing Weapon . | . . . Piercing Weapon . | . . . Special Melee Weapon . | . . . Unidentified Prototypes . | . . . Parts Lost 5 | . 3 2 Power . | . . . Propulsion 1 | . . 1 Utility . | . . . Weapon 4 | . 3 1 Highest Loss Streak 1 | . 1 1 To Critical Strikes . | . . . Average Backups 5 | 1 3 7 Power 1 | . 1 1 Propulsion . | . . . Utility 1 | . . 2 Weapon 2 | . 1 2 Tool/Special . | . . . Unused Backups 3 | . . 3 Power . | . . . Propulsion . | . . . Utility 2 | . . 2 Weapon 1 | . . 1 Tool/Special . | . . . Average Slot Usage (%) 94 | . 95 93 Engine 12 | . 14 11 Leg 34 | . 28 38 Device 10 | . 10 11 Storage 12 | . 14 11 Energy Gun 14 | . 20 10 Ballistic Gun 9 | . 7 11 Peak Build Rating 12 | 6 8 12 Average Rating 8 | 4 6 10 On Entrance 4 | . 6 8 Avg Prop Armor Cover (%) 8 | 9 8 . Naked Turns . | . . . Heaviest Build 17 | 12 15 17 Greatest Support 40 | 20 20 40 Greatest Overweight (x) 1 | 1 1 . Average Overweight (x) . | . . . Largest Inventory Capacity 8 | 8 8 8 Average Capacity 7 | 7 8 8 Most Carried 8 | 2 5 8 Average Carried 5 | 1 3 7 Final Capacity 8 | 8 8 8 Final Carried 7 | 2 5 7 Class Distribution -------------------- 59% | Mutant 40% | Scavenger-Mutant Dominant Class ---------------- Mutant | -10/Materials Scavenger-Mutant | -9/Materials Resources | -11 -10 -9 ----------- Run | Yrd Mat Mat Matter Collected 660 | 240 120 300 Remotely . | . . . Salvage Created 726 | . 217 509 Parts 44 | . 18 26 Haulers Intercepted . | . . . Recyclers Shooed . | . . . Parts Field Recycled . | . . . Retrieved Matter . | . . . Parts Self-Destructed . | . . . Prevented . | . . . Parts Restored . | . . . Kills | -11 -10 -9 ------- Run | Yrd Mat Mat Combat Hostiles Destroyed 28 | . 11 17 Guns 28 | . 11 17 Classes Destroyed 5 | . 2 3 Watcher 1 | . . 1 Swarmer 14 | . 9 5 Grunt 11 | . 2 9 Brawler 1 | . . 1 Sentry 2 | . . 2 Best Kill Streak 5 | . 5 3 Combat Bots Only 5 | . 5 3 Max Kills in Single Turn 2 | . 2 1 Gunslinging 1 | . 1 . Exploded . | . . . Melee . | . . . Uniques/NPCs Destroyed . | . . . Combat | -11 -10 -9 -------- Run | Yrd Mat Mat Hostile Shots Fired 173 | . 69 104 Missed 40 | . 17 23 Hits 133 | . 52 81 Melee 4 | . . 4 Projectile 129 | . 52 77 Damage Taken 1419 | . 487 932 Core 256 | . 102 154 Absorbed by Shields . | . . . Regen/Repaired (Parts) 46 | . . 46 Core Remaining (%) 79 | 100 59 . Volleys Fired 67 | . 26 41 Largest 2 | . 2 2 Hottest 90 | . 90 88 Shots Fired 132 | . 50 82 Gun 132 | . 50 82 Cannon . | . . . Launcher . | . . . Special . | . . . Kinetic 60 | . 16 44 Thermal 67 | . 29 38 Explosive . | . . . Electromagnetic 5 | . 5 . Robot Hit Streak 17 | . 4 17 Robot Miss Streak 7 | . 7 6 Penetration Max . | . . . Secondary Targets 6 | . 2 4 Max Gunslinging Chain 1 | . 1 1 Shots Hit Robots 91 | . 25 66 Core Hits 69 | . 13 56 Critical Kills . | . . . Critical Parts Destroyed 2 | . . 2 Critical Strikes 3 | . 1 2 Destroy 2 | . . 2 Corrupt 1 | . 1 . Melee Attacks . | . . . Impact . | . . . Slashing . | . . . Piercing . | . . . Sneak Attacks . | . . . Combat Hostiles . | . . . Follow-up Attacks . | . . . Damage Inflicted 1287 | . 395 892 Guns 1202 | . 314 888 Cannons . | . . . Explosions 81 | . 81 . Melee . | . . . Ramming 4 | . . 4 Kinetic 473 | . 67 406 Thermal 757 | . 275 482 Explosive . | . . . Electromagnetic 53 | . 53 . Impact . | . . . Slashing . | . . . Piercing . | . . . Highest Corruption . | . . . Average Corruption . | . . . Corruption Purged . | . . . Corruption Blocked . | . . . Overload Shots . | . . . Overflow Damage . | . . . Projectiles . | . . . Explosions . | . . . Melee . | . . . Knockbacks 1 | . . 1 Impact 1 | . . 1 Kinetic . | . . . Secondary . | . . . Self-Inflicted Damage 34 | . 34 . Shots 1 | . 1 . Rammed . | . . . Targets Rammed 1 | . . 1 Kicked 1 | . . 1 Crushed . | . . . Highest Temperature 208 | . 208 126 Average Temperature 54 | . 82 34 Received Heat Transfer 297 | . 42 255 Siege Activations . | . . . Martial Activations . | . . . Shielding Activations . | . . . Robots Disrupted . | . . . Combat Hostiles . | . . . Robots Corrupted . | . . . Combat Hostiles . | . . . Parts Fried . | . . . Impact Corruptions . | . . . Robots Melted . | . . . Combat Hostiles . | . . . Parts Melted 1 | . 1 . Heat Transferred 1202 | . 597 605 Parts Sabotaged . | . . . Parts Stolen . | . . . Parts Stripped . | . . . Power Chain Reactions 1 | . 1 . Alert | -11 -10 -9 ------- Run | Yrd Mat Mat Maximum Alert Level . | . . . Low Security (%) 100 | 100 100 100 Level 1 . | . . . Level 2 . | . . . Level 3 . | . . . Level 4 . | . . . Level 5 . | . . . High Security . | . . . Max Security . | . . . Peak Influence 142 | . 104 142 Initial 24 | . . 24 Average 64 | . 49 81 Influence Increases 714 | . 264 450 Destroy 0b10 Robot/C 560 | . 220 340 Destroy 0b10 Robot/NC 5 | . . 5 Destroy Leader 112 | . 40 72 Disable Machine 30 | . . 30 Destroy Structure 7 | . 4 3 Influence Decreases 578 | . 206 372 Entered New Map 34 | . . 34 Time Decay 494 | . 176 318 Lost Part 50 | . 30 20 Squads Dispatched 3 | . 1 2 Investigation 1 | . . 1 Extermination . | . . . Reinforcement 2 | . 1 1 Assault . | . . . Garrison . | . . . Intercept . | . . . Searches Triggered . | . . . Construction Impeded . | . . . Haulers Reinforced . | . . . Active Scanning Responses . | . . . Cargo Convoy Interrupts . | . . . Stealth | -11 -10 -9 --------- Run | Yrd Mat Mat Distress Signals 2 | . 1 1 Communications Jammed . | . . . Distress Signals . | . . . Times Spotted 49 | . 18 31 Peak Tracking Total 9 | . 5 9 Tactical Retreats 1 | . . 1 ECM-based Alert Blocks 3 | . . 3 Traps | -11 -10 -9 ------- Run | Yrd Mat Mat Traps Triggered 1 | . . 1 Indirectly . | . . . Trap Hack Attempts . | . . . Triggered . | . . . Disarmed . | . . . Reprogrammed . | . . . Reused . | . . . Traps Extracted . | . . . Installed . | . . . Triggered . | . . . Machines | -11 -10 -9 ---------- Run | Yrd Mat Mat Machines Disabled 2 | . . 2 Max in Single Turn 1 | . . 1 Machines Repaired . | . . . Machines Dismantled . | . . . Machines Sabotaged . | . . . Overloaded Fab Kills . | . . . Hacking | -11 -10 -9 --------- Run | Yrd Mat Mat Machines Accessed 4 | . 1 3 Terminals 1 | . . 1 Fabricators . | . . . Repair Stations 1 | . . 1 Recycling Units 2 | . 1 1 Scanalyzers . | . . . Garrison Access . | . . . Total Hacks 9 | . 3 6 Successful 6 | . 2 4 Failed 3 | . 1 2 Catastrophic . | . . . Database Lockouts . | . . . Manual . | . . . Terminals 1 | . . 1 Fabricators . | . . . Repair Stations 2 | . . 2 Recycling Units 6 | . 3 3 Scanalyzers . | . . . Garrison Access . | . . . Terminal Hacks 1 | . . 1 Alert Level 1 | . . 1 Fabricator Hacks . | . . . Repair Station Hacks 2 | . . 2 Scan Component 1 | . . 1 Repair 1 | . . 1 Recycling Unit Hacks 3 | . 2 1 Report Inventory 2 | . 1 1 Retrieve Components 1 | . 1 . Scanalyzer . | . . . Garrison Access Hacks . | . . . Unauthorized Hacks . | . . . Terminals . | . . . Fabricators . | . . . Repair Stations . | . . . Recycling Units . | . . . Scanalyzers . | . . . Garrison Access . | . . . Data Cores Recovered . | . . . Used . | . . . Hacking Detections 2 | . 1 1 Full Trace Events 1 | . 1 . Feedback Events . | . . . Feedback Blocked . | . . . Robot Schematics Acquired . | . . . Robots Built . | . . . Authchips . | . . . Time . | . . . Total Robot Build Rating . | . . . Part Schematics Acquired . | . . . Parts Built . | . . . Authchips . | . . . Time . | . . . Total Part Build Rating . | . . . Part Studies Acquired . | . . . Parts Repaired 1 | . . 1 Time 32 | . . 32 Parts Recycled . | . . . Recycled Matter . | . . . Retrieved Matter . | . . . Retrieved Components 5 | . 5 . Parts Scanalyzed . | . . . Part Schematics Acquired . | . . . Parts Damaged . | . . . Bothacking | -11 -10 -9 ------------ Run | Yrd Mat Mat Used RIF Installer . | . . . Robots Hacked . | . . . Non-combat . | . . . Combat . | . . . Robot Hacks Applied . | . . . Relay Couplers Released . | . . . Fabnet Peak Effective % . | . . . Robots Rewired . | . . . Allies Hacked . | . . . Hacks Repelled . | . . . Allies | -11 -10 -9 -------- Run | Yrd Mat Mat Total Allies . | . . . Largest Group . | . . . Highest-Rated Group . | . . . Highest-Rated Ally . | . . . Total Orders . | . . . Ally Attacks . | . . . Total Damage . | . . . Kills . | . . . Allies Corrupted . | . . . Allies Melted . | . . . Intel | -11 -10 -9 ------- Run | Yrd Mat Mat Active Infowar (turns) 610 | . 403 207 ECM 610 | . 403 207 Robot Analysis Total . | . . . Derelict Logs Recovered . | . . . Drone Launches . | . . . Drone Recoveries . | . . . Exploration | -11 -10 -9 ------------- Run | Yrd Mat Mat Turns Passed 1349 | 73 521 755 Spaces Moved 729 | 41 297 391 Core 5 | 5 . . Treads 4 | 4 . . Legs 720 | 32 297 391 Wheels . | . . . Hover . | . . . Flight . | . . . Fastest Speed 50 | 50 120 120 Average Speed 128 | 149 136 120 Slowest Speed 190 | 190 190 120 Overloaded Moves . | . . . Propulsion Burnouts . | . . . Robots Hopped . | . . . Potential Cave-ins . | . . . Cave-ins Triggered . | . . . Exploration Rate (%) 31 | 3 55 37 Regions Visited 2 Branch Regions . Pre-discovered Areas . | . . . Known Exits Taken . | . . . Unknown Exits Taken 2 | 1 1 . Scrap Searched . | . . . Spaces Dug . | . . . Terrain Destroyed 3 | . 3 . Melee . | . . . Projectile . | . . . AOE 3 | . 3 . Terrain Rammed . | . . . Walls Destroyed . | . . . Machines Disabled . | . . . Actions | -11 -10 -9 --------- Run | Yrd Mat Mat Total 1007 | 50 358 599 Wait 163 | . 25 138 Move 727 | 40 296 391 Hop . | . . . Pick Up 7 | 2 2 3 Fast Attach 11 | 7 2 2 Attach 4 | . 2 2 Detach . | . . . Swap 17 | . 5 12 Drop 10 | 1 . 9 Fire 67 | . 26 41 Melee . | . . . Ram . | . . . Kick 1 | . . 1 Crush . | . . . Escape Stasis . | . . . Rewire . | . . . Trap . | . . . Miscellaneous . | . . . Route ------- -11/Scrapyard -10/Materials (discovered 2 exits: *Mat / [*Min]) -9/Materials History --------- Turn | Location | Event 5 | -11/Scrapyard | Discovered new exit (range 15) 74 | -11/Scrapyard | Entered Materials 316 | -10/Materials | Build established: Mutant 441 | -10/Materials | Discovered new exit (range 14) 556 | -10/Materials | Discovered new exit (range 14) 595 | -10/Materials | Entered another Materials area 595 | -9/Materials | Evolved 2 slots: Propulsion x2 926 | -9/Materials | Repaired Spread Laser 1107 | -9/Materials | Build established: Scavenger-Mutant 1350 | -9/Materials | Self-destructed Last Messages --------------- G-34 Mercenary unfolds itself. K-01 Serf collects debris. Dropped Lgt. Ion Engine. G-34 Mercenary destroyed. B-36 Bruiser destroyed. K-01 Serf collects debris. Acquired 18 matter. K-01 Serf cleans the Nuclear Reactor. K-01 Serf cleans the Terminal. Spread Laser destroyed. S-10 Pest destroyed. Switching to secondary target: L-31 Rogue. K-01 Serf collects debris. Electrolysis Chamber disabled. K-01 Serf collects debris. K-01 Serf cleans the Nuclear Reactor. L-31 Rogue suffers critical hit (Destroy). Destroyed Imp. Ion Engine. K-01 Serf cleans the Terminal. K-01 Serf collects debris. Map ----- +----------------------------------------------------+ | ["% "T" #??????????????????????????????????????? | | # # #??????????????????????????????????????? | | # #########??????????????????????????????????????? | | #+#######????????????????????????????????????????? | | #????????????????????????????????????????? | | """ #????????????????????????????????????????? | | """ #####????????????????????????????????????? | | """ # #????????????????????????????????????? | | + #????????????????????????????????????? | | """ # #????????????????????????????????????? | | """ # #????? ??? ????????????????????????? | | """ # #????# "?" m ??? ???????????????????? | | # ###### "?" ""?? #??????????????????? | | ######### + # ? ?? #??????????????????? | | ????????# # # ? ?? #??????????????????? | | ????????# # !# ^""" """ #######????????????? | | ????????# # # """ """ ?????????????? | | ????????# # # """ "" ??????????????? | | ######### # # k ???????????????? | | *** # + # = #????????????????? | | *** # ###### #????????????????? | | *** # u #????????????????? | | # k s #????????????????? | | =# s #????????????????? | | """"[/% Tk ggl s #????????????????? | | """"/#= k %g%@ #????????????????? | | """" # """ Y#############???????????????? | | # """ # ????????????????? | | ######### """ + """ "???????????????????? | | ????????# # """ "???????????????????? | | ????????# # """ "???????????????????? | | ????????# """ """ #? ???????????????????? | | ??????? """ """ #? ??????????????????? | | ?????? """ """ #?? ?????????????????? | | ?????? #??#####/###????????????????? | | ?????? ## #????????#??????????????????? | | ????????# """ """ ???????????????????????????? | | ????????+ """ """ ???????????????????????????? | | ????????? "?" """ ??????????????????????????? | | ????????? ?? ?? ???????????????????????????? | | ????????? ??? ?? #??????????????????????????? | | ??????????????????####???????????????????????????? | | ?????????????????????????????????????????????????? | | ?????????????????????????????????????????????????? | | ?????????????????????????????????????????????????? | | ?????????????????????????????????????????????????? | | ?????????????????????????????????????????????????? | | ?????????????????????????????????????????????????? | | ?????????????????????????????????????????????????? | | ?????????????????????????????????????????????????? | +----------------------------------------------------+ Best States ------------- Heat Dissipation 38 Energy Generation 10 Energy Capacity 250 Matter Stores 300 Matter Capacity 300 Sight Range 16 Terrain Scan Density 10 ECM Strength 1 Evasion (%) 55 Recoil Reduction 1 Item Schematics ----------------- None Robot Schematics ------------------ None Fabricated ------------ Nothing Repaired ---------- Spread Laser | 42% | -9/Materials Studied --------- None Alien Tech Used ----------------- None Achievements -------------- None Challenges ------------ None Game ------ Seed TerrabombGrenadeShotgun Manual? 0 Play Time 00:23:02 Cumulative 15.1 hours Start 2026.09.05 @ 06:36:18 End 2026.09.05 @ 06:58:48 Sessions 1 Manual Loads 0 Difficulty Rogue Special Mode None Game No. 19 Rogue 19 Adventurer 0 Explorer 0 Win Type - Total 0 Types 0/0/0/0/0/0/0/0/0/0 Lore% 11 Gallery% 12 Achievement% 11 Wizard Run 0 Options --------- Layout 0 ASCII 0 Keyboard 0 Movement Mouse Keybinds 0 Fullscreen 2 Font 20/SmallcapsGlow Map View 96x60 Zoom Use 4% Tactical HUD 0 Map Filters NONE Filters NONE Steam 1 RUN: a64400e7-95df-49f2-abac-653238cb851f